Workbook

Sheet Sheet1
A1: MMF | D1: PM Checks
A3: "X"
A5: Undulator | B5: SN 13
A6: Date: | B6: 2015-07-02
A7: Crew: | B7: FG, BR
A9: BUCK IN
A10: Far Value | B10: 0 | C10: PM1 X1
A11: Near Value | B11: 0 | C11: PM 4 X1
A12: 1st Far | B12: 15
A13: 1st. Near | B13: 16.227
A14: 2nd. Far | B14: 16.613
A15: 2nd Near | B15: 16.821
A16: Far Should Read | B16: =BuckIn(B10,B11,B12,B13,B14,B15) -> 16.94224828
A17: Near Should Read | B17: 16.94224828
A18: LOS | B18: 16.94224828
A20: Undulator
A23: 1) | B23: 2) | C23: 3) | D23: 4)
A24: 21.001 | B24: 20.994 | C24: 20.998 | D24: 21.001
A25: 1 | B25: 1 | C25: 1 | D25: 1
A26: =SUM(A24:A25) -> 22.001 | B26: =SUM(B24:B25) -> 21.994 | C26: =SUM(C24:C25) -> 21.998 | D26: =SUM(D24:D25) -> 22.001
A27: =B18 -> 16.94224828 | B27: =B18 -> 16.94224828 | C27: =B18 -> 16.94224828 | D27: =B18 -> 16.94224828
A28: =SUM(A27-A26) -> -5.058751717 | B28: =SUM(B27-B26) -> -5.051751717 | C28: =SUM(C27-C26) -> -5.055751717 | D28: =SUM(D27-D26) -> -5.058751717
A30: 5) | B30: 6) | C30: 7) | D30: 8)
A31: 11.223 | B31: 11.225 | C31: 11.224 | D31: 11.223
A32: 1 | B32: 1 | C32: 1 | D32: 1
A33: =SUM(A31:A32) -> 12.223 | B33: =SUM(B31:B32) -> 12.225 | C33: =SUM(C31:C32) -> 12.224 | D33: =SUM(D31:D32) -> 12.223
A34: =B18 -> 16.94224828 | B34: =B18 -> 16.94224828 | C34: =B18 -> 16.94224828 | D34: =B18 -> 16.94224828
A35: =SUM(A34-A33) -> 4.719248283 | B35: =SUM(B34-B33) -> 4.717248283 | C35: =SUM(C34-C33) -> 4.718248283 | D35: =SUM(D34-D33) -> 4.719248283
B38: Reference | C38: Block
A40: A) | B40: B) | C40: C) | D40: D)
A41: 22.555 | B41: 18.024 | C41: 16.265 | D41: 16.265
A42: 1 | B42: 1 | C42: 1 | D42: 1
A43: =SUM(A41:A42) -> 23.555 | B43: =SUM(B41:B42) -> 19.024 | C43: =SUM(C41:C42) -> 17.265 | D43: =SUM(D41:D42) -> 17.265
A44: =B18 -> 16.94224828 | B44: =B18 -> 16.94224828 | C44: =B18 -> 16.94224828 | D44: =B18 -> 16.94224828
A45: =SUM(A44-A43) -> -6.612751717 | B45: =SUM(B44-B43) -> -2.081751717 | C45: =SUM(C44-C43) -> -0.3227517174 | D45: =SUM(D44-D43) -> -0.3227517174
A51: MMF | D51: PM Checks
A53: "X"
A55: =B18 -> 16.94224828 | B55: LOS
A56: Undulator | B56: =B5 -> SN 13
A57: Date: | B57: =B6 -> 2015-07-02
A58: Crew: | B58: =B7 -> FG, BR
B61: PM4
A63: X1) Buck In | B63: Y1) | C63: Y2)
B64: 19.542 | C64: 19.541
B65: 1 | C65: 1
B66: =SUM(B64:B65) -> 20.542 | C66: =SUM(C64:C65) -> 20.541
B67: =B18 -> 16.94224828 | C67: =B18 -> 16.94224828
A68: 0 | B68: =SUM(B67-B66) -> -3.599751717 | C68: =SUM(C67-C66) -> -3.598751717
B71: PM3
A73: X1) | B73: Y1) | C73: Y2)
A74: 17.408 | B74: 21.002 | C74: 21
A75: 1 | B75: 1 | C75: 1
A76: =SUM(A74:A75) -> 18.408 | B76: =SUM(B74:B75) -> 22.002 | C76: =SUM(C74:C75) -> 22
A77: =B18 -> 16.94224828 | B77: =B18 -> 16.94224828 | C77: =B18 -> 16.94224828
A78: =SUM(A77-A76) -> -1.465751717 | B78: =SUM(B77-B76) -> -5.059751717 | C78: =SUM(C77-C76) -> -5.057751717
B81: PM 2
A82: X1) | B82: Y1) | C82: Y2)
A83: 17.397 | B83: 20.99 | C83: 20.994
A84: 1 | B84: 1 | C84: 1
A85: =SUM(A83:A84) -> 18.397 | B85: =SUM(B83:B84) -> 21.99 | C85: =SUM(C83:C84) -> 21.994
A86: =B18 -> 16.94224828 | B86: =B18 -> 16.94224828 | C86: =B18 -> 16.94224828
A87: =SUM(A86-A85) -> -1.454751717 | B87: =SUM(B86-B85) -> -5.047751717 | C87: =SUM(C86-C85) -> -5.051751717
B90: PM1
A91: X1) Buck In | B91: Y1) | C91: Y2)
B92: 19.541 | C92: 19.535
B93: 1 | C93: 1
B94: =SUM(B92:B93) -> 20.541 | C94: =SUM(C92:C93) -> 20.535
B95: =B18 -> 16.94224828 | C95: =B18 -> 16.94224828
A96: 0 | B96: =SUM(B95-B94) -> -3.598751717 | C96: =SUM(C95-C94) -> -3.592751717
A101: MMF | D101: PM Checks
A103: "Y" | C103: PM4Y1 | D103: PM1Y1
C104: 9.148 | D104: 9.158
C105: 1 | D105: 1
A106: Undulator | B106: =B5 -> SN 13 | C106: =SUM(C104+C105) -> 10.148 | D106: =SUM(D104+D105) -> 10.158
A107: Date: | B107: =B6 -> 2015-07-02
A108: Crew: | B108: =B7 -> FG, BR
C109: HI = | D109: =AVERAGE(C106,D106) -> 10.153
A111: PM4 | C111: PM3
A113: Y1) | B113: X1) | C113: Y2) | D113: X1
A114: =C104 -> 9.148 | B114: 12.75 | C114: 9.159 | D114: 12.762
A115: 1 | B115: 1 | C115: 1 | D115: 1
A116: =SUM(A114:A115) -> 10.148 | B116: =SUM(B114:B115) -> 13.75 | C116: =SUM(C114:C115) -> 10.159 | D116: =SUM(D114:D115) -> 13.762
A117: =D109 -> 10.153 | B117: =D109 -> 10.153 | C117: =D109 -> 10.153 | D117: =D109 -> 10.153
A118: =SUM(A117-A116) -> 0.005 | B118: =SUM(B117-B116) -> -3.597 | C118: =SUM(C117-C116) -> -0.006 | D118: =SUM(D117-D116) -> -3.609
A121: PM2 | C121: PM1
A123: Y1) | B123: X1) | C123: Y1) | D123: X1)
A124: 9.16 | B124: 12.762 | C124: =D104 -> 9.158 | D124: 12.759
A125: 1 | B125: 1 | C125: 1 | D125: 1
A126: =SUM(A124:A125) -> 10.16 | B126: =SUM(B124:B125) -> 13.762 | C126: =SUM(C124:C125) -> 10.158 | D126: =SUM(D124:D125) -> 13.759
A127: =D109 -> 10.153 | B127: =D109 -> 10.153 | C127: =D109 -> 10.153 | D127: =D109 -> 10.153
A128: =SUM(A127-A126) -> -0.007 | B128: =SUM(B127-B126) -> -3.609 | C128: =SUM(C127-C126) -> -0.005 | D128: =SUM(D127-D126) -> -3.606
A135: Top Of Gage Block | C135: Probe Location in (X) | G135: Off set to probe tip | H135: -5.464
G136: Blade Reading | H136: 28.002
A137: 14.286 | C137: -5.464 | D137: LOS | G137: LOS | H137: 16.942
A138: =D109 -> 10.153 | C138: -0.05 | D138: Mic To Plus Edge
A139: =SUM(A138-A137) -> -4.133 | C139: =SUM(C137+C138) -> -5.514 | G139: Blade to LOS | H139: =H136+H137 -> 44.944
C140: -0.039 | G140: LOS to probe tip | H140: =H139-H135 -> 50.408
C141: =(C139+C140) -> -5.553 | D141: Probe Location
A151: MMF | D151: PM Checks
A153: "Y"
A155: Undulator | B155: =B5 -> SN 13
A156: Date: | B156: =B107 -> 2015-07-02
A157: Crew: | B157: =B7 -> FG, BR
A160: HI = | B160: =D109 -> 10.153
A162: Undulator
A164: 1) | B164: 2) | C164: 3) | D164: 4)
A165: 5.671 | B165: 5.671 | C165: 5.677 | D165: 5.675
A166: 1 | B166: 1 | C166: 1 | D166: 1
A167: =SUM(A165:A166) -> 6.671 | B167: =SUM(B165:B166) -> 6.671 | C167: =SUM(C165:C166) -> 6.677 | D167: =SUM(D165:D166) -> 6.675
A168: =D109 -> 10.153 | B168: =D109 -> 10.153 | C168: =D109 -> 10.153 | D168: =D109 -> 10.153
A169: =SUM(A168-A167) -> 3.482 | B169: =SUM(B168-B167) -> 3.482 | C169: =SUM(C168-C167) -> 3.476 | D169: =SUM(D168-D167) -> 3.478
A172: 5) | B172: 6) | C172: 7) | D172: 8)
A173: 12.763 | B173: 12.768 | C173: 12.767 | D173: 12.772
A174: 1 | B174: 1 | C174: 1 | D174: 1
A175: =SUM(A173+A174) -> 13.763 | B175: =SUM(B173+B174) -> 13.768 | C175: =SUM(C173+C174) -> 13.767 | D175: =SUM(D173+D174) -> 13.772
A176: =D109 -> 10.153 | B176: =D109 -> 10.153 | C176: =D109 -> 10.153 | D176: =D109 -> 10.153
A177: =SUM(A176-A175) -> -3.61 | B177: =SUM(B176-B175) -> -3.615 | C177: =SUM(C176-C175) -> -3.614 | D177: =SUM(D176-D175) -> -3.619
A181: Reference Block
A183: A) | B183: B) | C183: C) | D183: D)
A184: 9.397 | C184: 11.54 | D184: 14.621
A185: 1 | C185: 1 | D185: 1
A186: =SUM(A184+A185) -> 10.397 | C186: =SUM(C184+C185) -> 12.54 | D186: =SUM(D184+D185) -> 15.621
A187: =D109 -> 10.153 | C187: =D109 -> 10.153 | D187: =D109 -> 10.153
A188: =SUM(A187-A186) -> -0.244 | B188: 0 | C188: =SUM(C187-C186) -> -2.387 | D188: =SUM(D187-D186) -> -5.468
A191: Flats
A193: U/S | C193: D/S
A194: (+) | B194: (-) | C194: (+) | D194: (-)
A195: 8.443 | B195: 8.442 | C195: 8.445 | D195: 8.444
A196: =D109 -> 10.153 | B196: =D109 -> 10.153 | C196: =D109 -> 10.153 | D196: =D109 -> 10.153
A197: =SUM(A196-A195) -> 1.71 | B197: =SUM(B196-B195) -> 1.711 | C197: =SUM(C196-C195) -> 1.708 | D197: =SUM(D196-D195) -> 1.709

Sheet Sheet2
A2: Undulator | C2: =Sheet1!B5 -> SN 13
A3: Date | C3: =Sheet1!B6 -> 2015-07-02
A4: Crew | C4: =Sheet1!B7 -> FG, BR
A7: Undulator Values
A9: TB | B9: Y (in) | C9: Y (mm) | F9: TB | G9: X (in) | H9: X (mm)
A10: 1 | B10: =Sheet1!A169 -> 3.482 | C10: =B10*25.4 -> 88.4428 | F10: 5 | G10: =Sheet1!A35 -> 4.719248283 | H10: =G10*25.4 -> 119.8689064
A11: 2 | B11: =Sheet1!B169 -> 3.482 | C11: =B11*25.4 -> 88.4428 | F11: 6 | G11: =Sheet1!B35 -> 4.717248283 | H11: =G11*25.4 -> 119.8181064
A12: 3 | B12: =Sheet1!C169 -> 3.476 | C12: =B12*25.4 -> 88.2904 | F12: 7 | G12: =Sheet1!C35 -> 4.718248283 | H12: =G12*25.4 -> 119.8435064
A13: 4 | B13: =Sheet1!D169 -> 3.478 | C13: =B13*25.4 -> 88.3412 | F13: 8 | G13: =Sheet1!D35 -> 4.719248283 | H13: =G13*25.4 -> 119.8689064
A16: PM Values
C18: Upstream | E18: (PM 3) | G18: Checks
A19: TB | B19: X (in) | C19: Y (in) | D19: X (mm) | E19: Y (mm) | G19: X (mm) | H19: Y (mm)
A20: Y2 | B20: =Sheet1!C78 -> -5.057751717 | C20: =Sheet1!C118 -> -0.006 | D20: =B20*25.4 -> -128.4668936 | E20: =C20*25.4 -> -0.1524 | G20: =H10-D21 -> 157.099 | H20: =C10-E20 -> 88.5952
A21: X1 | B21: =Sheet1!A78 -> -1.465751717 | C21: =Sheet1!D118 -> -3.609 | D21: =B21*25.4 -> -37.23009362 | E21: =C21*25.4 -> -91.6686
A22: Y1 | B22: =Sheet1!B78 -> -5.059751717 | D22: =B22*25.4 -> -128.5176936
C24: Downstream | E24: (PM 2) | G24: Checks
A25: TB | B25: X (in) | C25: Y (in) | D25: X (mm) | E25: Y (mm) | G25: X (mm) | H25: Y (mm)
A26: Y1 | B26: =Sheet1!B87 -> -5.047751717 | C26: =Sheet1!A128 -> -0.007 | D26: =B26*25.4 -> -128.2128936 | E26: =C26*25.4 -> -0.1778 | G26: =H13-D27 -> 156.8196 | H26: =C13-E26 -> 88.519
A27: X1 | B27: =Sheet1!A87 -> -1.454751717 | C27: =Sheet1!B128 -> -3.609 | D27: =B27*25.4 -> -36.95069362 | E27: =C27*25.4 -> -91.6686
A28: Y2 | B28: =Sheet1!C87 -> -5.051751717 | D28: =B28*25.4 -> -128.3144936
B33: Probe | F33: Flats
B35: X (in) | C35: X (mm) | F35: Y(in) | G35: Y(mm)
B36: =Sheet1!C141 -> -5.553 | C36: =B36*25.4 -> -141.0462 | E36: US + | F36: =Sheet1!A197 -> 1.71 | G36: =F36*25.4 -> 43.434
E37: US - | F37: =Sheet1!B197 -> 1.711 | G37: =F37*25.4 -> 43.4594
E38: DS + | F38: =Sheet1!C197 -> 1.708 | G38: =F38*25.4 -> 43.3832
C39: Top of Gage Block | E39: DS - | F39: =Sheet1!D197 -> 1.709 | G39: =F39*25.4 -> 43.4086
B41: Y (in) | C41: Y (mm)
B42: =Sheet1!A139 -> -4.133 | C42: =B42*25.4 -> -104.9782

Sheet Sheet3
A2: Undulator | C2: 13
A3: Date | C3: =Sheet1!B6 -> 2015-07-02
A4: Crew | C4: MR,BR
C7: Undulator Values
A9: TB | B9: X (in) | C9: Y (in) | D9: X (mm) | E9: Y (mm) | G9: Probe
A10: 1 | B10: =Sheet1!A28 -> -5.058751717 | C10: =Sheet1!A169 -> 3.482 | D10: =SUM(B10*25.4) -> -128.4922936 | E10: =SUM(C10*25.4) -> 88.4428
A11: 2 | B11: =Sheet1!B28 -> -5.051751717 | C11: =Sheet1!B169 -> 3.482 | D11: =SUM(B11*25.4) -> -128.3144936 | E11: =SUM(C11*25.4) -> 88.4428 | G11: X (in) | H11: X (mm)
A12: 3 | B12: =Sheet1!C28 -> -5.055751717 | C12: =Sheet1!C169 -> 3.476 | D12: -128.4160936 | E12: 88.2904 | G12: =Sheet1!C141 -> -5.553 | H12: =SUM(G12*25.4) -> -141.0462
A13: 4 | B13: =Sheet1!D28 -> -5.058751717 | C13: =Sheet1!D169 -> 3.478 | D13: -128.4922936 | E13: 88.3412
A14: 5 | B14: =Sheet1!A35 -> 4.719248283 | C14: =Sheet1!A177 -> -3.61 | D14: 119.8689064 | E14: -91.694
A15: 6 | B15: =Sheet1!B35 -> 4.717248283 | C15: =Sheet1!B177 -> -3.615 | D15: 119.8181064 | E15: -91.821 | G15: Top of Gage Block
A16: 7 | B16: =Sheet1!C35 -> 4.718248283 | C16: =Sheet1!C177 -> -3.614 | D16: 119.8435064 | E16: -91.7956
A17: 8 | B17: =Sheet1!D35 -> 4.719248283 | C17: =Sheet1!D177 -> -3.619 | D17: 119.8689064 | E17: -91.9226 | G17: Y (in) | H17: Y (mm)
G18: =Sheet1!A139 -> -4.133 | H18: =SUM(G18*25.4) -> -104.9782
C19: Undulator PM Values
C21: Upstream | E21: (PM 3)
A22: TB | B22: X (in) | C22: Y (in) | D22: X (mm) | E22: Y (mm) | G22: Flats
A23: Y2 | B23: =Sheet1!A78 -> -1.465751717 | C23: =Sheet1!C118 -> -0.006 | D23: =SUM(B23*25.4) -> -37.23009362 | E23: =SUM(C23*25.4) -> -0.1524
A24: X1 | B24: =Sheet1!A78 -> -1.465751717 | C24: =Sheet1!D118 -> -3.609 | D24: =SUM(B24*25.4) -> -37.23009362 | E24: =SUM(C24*25.4) -> -91.6686 | H24: Y(in) | I24: Y(mm)
A25: Y1 | B25: =Sheet1!B78 -> -5.059751717 | D25: =SUM(B25*25.4) -> -128.5176936 | G25: US + | H25: =Sheet1!A197 -> 1.71 | I25: =SUM(H25*25.4) -> 43.434
G26: US - | H26: =Sheet1!B197 -> 1.711 | I26: =SUM(H26*25.4) -> 43.4594
C27: Downstream | E27: (PM 2) | G27: DS + | H27: =Sheet1!C197 -> 1.708 | I27: =SUM(H27*25.4) -> 43.3832
A28: TB | B28: X (in) | C28: Y (in) | D28: X (mm) | E28: Y (mm) | G28: DS - | H28: =Sheet1!D197 -> 1.709 | I28: =SUM(H28*25.4) -> 43.4086
A29: Y1 | B29: =Sheet1!B87 -> -5.047751717 | C29: =Sheet1!A128 -> -0.007 | D29: =SUM(B29*25.4) -> -128.2128936 | E29: =SUM(C29*25.4) -> -0.1778
A30: X1 | B30: =Sheet1!A87 -> -1.454751717 | C30: =Sheet1!B128 -> -3.609 | D30: =SUM(B30*25.4) -> -36.95069362 | E30: =SUM(C30*25.4) -> -91.6686
A31: Y2 | B31: =Sheet1!C87 -> -5.051751717 | D31: =SUM(B31*25.4) -> -128.3144936
C33: Ref. PM Values
C35: Upstream | E35: (PM 4)
A36: TB | B36: X (in) | C36: Y (in) | D36: X (mm) | E36: Y (mm)
A37: Y1 | B37: =Sheet1!B68 -> -3.599751717 | C37: =Sheet1!A118 -> 0.005 | D37: =SUM(B37*25.4) -> -91.43369362 | E37: =SUM(C37*25.4) -> 0.127
A38: X1 | B38: 0 | C38: =Sheet1!B118 -> -3.597 | D38: 0 | E38: =SUM(C38*25.4) -> -91.3638
A39: Y2 | B39: =Sheet1!C68 -> -3.598751717 | D39: =SUM(B39*25.4) -> -91.40829362
C41: Downstream | E41: (PM 1)
A42: TB | B42: X (in) | C42: Y (in) | D42: X (mm) | E42: Y (mm)
A43: Y1 | B43: =Sheet1!B96 -> -3.598751717 | C43: =Sheet1!C128 -> -0.005 | D43: =SUM(B43*25.4) -> -91.40829362 | E43: =SUM(C43*25.4) -> -0.127
A44: X1 | B44: 0 | C44: =Sheet1!D128 -> -3.606 | D44: 0 | E44: =SUM(C44*25.4) -> -91.5924
A45: Y2 | B45: =Sheet1!C96 -> -3.592751717 | D45: =SUM(B45*25.4) -> -91.25589362
C47: Ref. Block
A48: TB | B48: X (in) | C48: Y (in) | D48: X (mm) | E48: Y (mm)
A49: A | B49: =Sheet1!A45 -> -6.612751717 | C49: =Sheet1!A188 -> -0.244 | D49: =SUM(B49*25.4) -> -167.9638936 | E49: =SUM(C49*25.4) -> -6.1976
A50: B | B50: =Sheet1!B45 -> -2.081751717 | D50: =SUM(B50*25.4) -> -52.87649362
A51: C | B51: =Sheet1!C45 -> -0.3227517174 | C51: =Sheet1!C188 -> -2.387 | D51: =SUM(B51*25.4) -> -8.197893621 | E51: =SUM(C51*25.4) -> -60.6298
A52: D | B52: =Sheet1!D45 -> -0.3227517174 | C52: =Sheet1!D188 -> -5.468 | D52: =SUM(B52*25.4) -> -8.197893621 | E52: =SUM(C52*25.4) -> -138.8872
